[Event "Skilling Open CCT 2021"]
[Site "Online"]
[Date "2020.11.19"]
[Round "11.7"]
[White "Firouzja, Alireza"]
[Black "Ding, Liren"]
[Result "1-0"]
[ECO "C54"]
[WhiteElo "2703"]
[BlackElo "2836"]
[Annotator "RC"]
[PlyCount "87"]
[EventDate "2020.11.20"]
[EventType "tourn"]
[EventCountry "NET"]
[Tiebreak "Koya+Number of black wins+Number of wins"]
[SourceTitle "playchess.com"]
[Source "ChessBase"]
[SourceQuality "1"]
[TimeControl "900+10"]

1. e4 {[%emt 0:00:00]} e5 {[%emt 0:00:00]} 2. Nf3 {[%emt 0:00:00]} Nc6 {
[%emt 0:00:00]} 3. Bc4 {[%emt 0:00:00]} Nf6 {[%emt 0:00:00]} 4. d3 {[%emt 0:00:
00]} Bc5 {[%emt 0:00:00]} 5. c3 {[%emt 0:00:00]} d6 {[%emt 0:00:03]} 6. O-O {
[%emt 0:00:05]} O-O {[%emt 0:00:07]} 7. Re1 {[%emt 0:00:06]} a5 {[%emt 0:00:08]
} 8. h3 {[%emt 0:00:04]} h6 {[%emt 0:00:11]} 9. Bb3 {[%emt 0:00:05]} b5 {
[%emt 0:00:24]} 10. d4 {[%emt 0:00:25]} Bb6 {[%emt 0:00:59]} 11. Be3 {[%emt 0:
00:04]} a4 {[%emt 0:00:41]} 12. Bc2 {[%emt 0:00:04]} exd4 {[%emt 0:03:06]} 13.
cxd4 {[%emt 0:00:05]} Nb4 {[%emt 0:00:01]} 14. Nc3 {[%emt 0:00:04]} Nxc2 {
[%emt 0:01:04]} 15. Qxc2 {[%emt 0:00:02]} Ba5 {[%emt 0:00:02]} 16. Bd2 {
[%emt 0:02:18]} Rb8 {[%emt 0:03:06]} 17. e5 {[%emt 0:04:36]} dxe5 {[%emt 0:00:
14]} 18. dxe5 {[%emt 0:00:02]} Bxc3 {[%emt 0:00:00]} 19. Qxc3 {[%emt 0:01:43]}
Nd5 {[%emt 0:00:14]} 20. Qc5 {[%emt 0:00:01]} Be6 {[%emt 0:00:53]} 21. Rac1 {
[%emt 0:00:36]} Qd7 {[%emt 0:01:05]} 22. Red1 {[%emt 0:00:24]} Rfc8 {[%emt 0:
03:22]} 23. Nd4 {[%emt 0:01:06]} c6 {[%emt 0:00:00]} 24. Kh2 {[%emt 0:02:27]}
Rb7 {[%emt 0:00:07]} 25. Be1 {[%emt 0:00:49]} Qe8 {[%emt 0:00:45]} 26. a3 {
[%emt 0:01:00]} Bd7 {[%emt 0:00:06]} 27. Nf3 {[%emt 0:00:41]} Nf4 {[%emt 0:00:
19]} 28. Qe3 {[%emt 0:00:20]} Nd5 {[%emt 0:00:59]} 29. Qe4 {[%emt 0:00:08]} Nb6
{[%emt 0:00:15]} 30. Rc5 {[%emt 0:00:31]} Be6 {[%emt 0:00:07]} 31. Nd4 {
[%emt 0:01:02]} Bd5 {[%emt 0:00:07]} 32. Qg4 {[%emt 0:00:29]} Qxe5+ {[%emt 0:
00:57]} 33. f4 {[%emt 0:00:02]} Qf6 {[%emt 0:00:01]} 34. Bc3 {[%emt 0:00:33]}
Qg6 {[%emt 0:00:02]} 35. Nf5 {[%emt 0:00:19]} Qxg4 {[%emt 0:00:09]} 36. hxg4 {
[%emt 0:00:00]} Rd7 {[%emt 0:00:46]} 37. Nxg7 {[%emt 0:00:16]} Be6 {[%emt 0:00:
31]} 38. Rxd7 {[%emt 0:00:12]} Bxd7 {[%emt 0:00:01]} 39. Nh5 {[%emt 0:00:12]}
Be6 {[%emt 0:00:03]} 40. Nf6+ {[%emt 0:00:12]} Kf8 {[%emt 0:00:01]} 41. Rh5 {
[%emt 0:00:25]} Nd5 {[%emt 0:00:01]} 42. Nxd5 {[%emt 0:00:11]} Bxd5 {[%emt 0:
00:00]} 43. Rxh6 {[%emt 0:00:03]} Re8 {[%emt 0:00:07]} 44. Bf6 {[%emt 0:00:11]}
1-0

[Event "Skilling Open CCT 2021"]
[Site "Online"]
[Date "2020.11.19"]
[Round "12.8"]
[White "So, Wesley"]
[Black "Svidler, Peter"]
[Result "1/2-1/2"]
[ECO "D85"]
[WhiteElo "2741"]
[BlackElo "2742"]
[Annotator "RC"]
[PlyCount "73"]
[EventDate "2020.11.20"]
[EventType "tourn"]
[EventCountry "NET"]
[Tiebreak "Koya+Number of black wins+Number of wins"]
[SourceTitle "playchess.com"]
[Source "ChessBase"]
[SourceQuality "1"]
[TimeControl "900+10"]

1. d4 {[%emt 0:00:00]} Nf6 {[%emt 0:00:00]} 2. c4 {[%emt 0:00:00]} g6 {[%emt 0:
00:00]} 3. Nc3 {[%emt 0:00:00]} d5 {[%emt 0:00:00]} 4. cxd5 {[%emt 0:00:00]}
Nxd5 {[%emt 0:00:00]} 5. e4 {[%emt 0:00:00]} Nxc3 {[%emt 0:00:00]} 6. bxc3 {
[%emt 0:00:00]} Bg7 {[%emt 0:00:00]} 7. Nf3 {[%emt 0:00:00]} c5 {[%emt 0:00:00]
} 8. Rb1 {[%emt 0:00:00]} O-O {[%emt 0:00:09]} 9. Be2 {[%emt 0:00:00]} cxd4 {
[%emt 0:00:04]} 10. cxd4 {[%emt 0:00:01]} Qa5+ {[%emt 0:00:02]} 11. Bd2 {
[%emt 0:00:01]} Qxa2 {[%emt 0:00:01]} 12. O-O {[%emt 0:00:01]} Bg4 {[%emt 0:00:
01]} 13. Rxb7 {[%emt 0:00:01]} Bxf3 {[%emt 0:00:02]} 14. Bxf3 {[%emt 0:00:00]}
Bxd4 {[%emt 0:00:03]} 15. e5 {[%emt 0:00:01]} Na6 {[%emt 0:00:15]} 16. Rxe7 {
[%emt 0:00:04]} Rad8 {[%emt 0:00:12]} 17. e6 {[%emt 0:00:02]} fxe6 {[%emt 0:00:
38]} 18. Qe1 {[%emt 0:00:03]} Bf6 {[%emt 0:00:24]} 19. Rxa7 {[%emt 0:00:03]}
Rxd2 {[%emt 0:00:04]} 20. Rxa6 {[%emt 0:00:02]} Qxa6 {[%emt 0:00:01]} 21. Qxd2
{[%emt 0:00:01]} Qb6 {[%emt 0:04:07]} 22. g3 {[%emt 0:00:02]} Bd4 {[%emt 0:00:
09]} 23. Kg2 {[%emt 0:00:05]} Kg7 {[%emt 0:00:13]} 24. Be4 {[%emt 0:00:56]} Qb2
{[%emt 0:00:15]} 25. Qxb2 {[%emt 0:00:01]} Bxb2 {[%emt 0:00:01]} 26. Rb1 {
[%emt 0:00:01]} Bd4 {[%emt 0:00:03]} 27. Rb7+ {[%emt 0:00:00]} Rf7 {[%emt 0:00:
02]} 28. Rxf7+ {[%emt 0:00:01]} Kxf7 {[%emt 0:00:01]} 29. f3 {[%emt 0:00:03]}
h6 {[%emt 0:00:02]} 30. g4 {[%emt 0:00:00]} g5 {[%emt 0:00:01]} 31. Bd3 {
[%emt 0:00:00]} Be5 {[%emt 0:00:01]} 32. Be4 {[%emt 0:00:00]} Kf6 {[%emt 0:00:
01]} 33. h3 {[%emt 0:00:02]} Bf4 {[%emt 0:00:01]} 34. Bd3 {[%emt 0:00:00]} Be5
{[%emt 0:00:01]} 35. Be4 {[%emt 0:00:00]} Bf4 {[%emt 0:00:01]} 36. Bd3 {
[%emt 0:00:00]} Be5 {[%emt 0:00:01]} 37. Be4 {[%emt 0:00:00]} 1/2-1/2

[Event "Skilling Open CCT 2021"]
[Site "Online"]
[Date "2020.11.19"]
[Round "13.4"]
[White "Radjabov, Teimour"]
[Black "Le, Quang Liem"]
[Result "1/2-1/2"]
[ECO "D37"]
[WhiteElo "2758"]
[BlackElo "2744"]
[Annotator "RC"]
[PlyCount "134"]
[EventDate "2020.11.20"]
[EventType "tourn"]
[EventCountry "NET"]
[Tiebreak "Koya+Number of black wins+Number of wins"]
[SourceTitle "playchess.com"]
[Source "ChessBase"]
[SourceQuality "1"]
[TimeControl "900+10"]

1. d4 {[%emt 0:00:00]} Nf6 {[%emt 0:00:00]} 2. c4 {[%emt 0:00:00]} e6 {[%emt 0:
00:00]} 3. Nf3 {[%emt 0:00:00]} d5 {[%emt 0:00:00]} 4. Nc3 {[%emt 0:00:00]} a6
{[%emt 0:00:00]} 5. c5 {[%emt 0:00:00]} b6 {[%emt 0:00:00]} 6. cxb6 {[%emt 0:
00:01]} cxb6 {[%emt 0:00:04]} 7. Bg5 {[%emt 0:00:01]} Be7 {[%emt 0:00:18]} 8.
e3 {[%emt 0:00:01]} O-O {[%emt 0:00:09]} 9. Bd3 {[%emt 0:00:02]} Nbd7 {[%emt 0:
00:14]} 10. O-O {[%emt 0:00:01]} Bb7 {[%emt 0:00:01]} 11. Qb1 {[%emt 0:00:24]}
h6 {[%emt 0:00:41]} 12. Bf4 {[%emt 0:00:04]} Rc8 {[%emt 0:00:56]} 13. a4 {
[%emt 0:00:16]} Nh5 {[%emt 0:04:42]} 14. h3 {[%emt 0:01:02]} Nxf4 {[%emt 0:00:
30]} 15. exf4 {[%emt 0:00:01]} Bb4 {[%emt 0:00:04]} 16. Rc1 {[%emt 0:00:18]}
Nf6 {[%emt 0:01:45]} 17. Qc2 {[%emt 0:02:39]} Ne4 {[%emt 0:01:47]} 18. Qb3 {
[%emt 0:00:28]} Bd6 {[%emt 0:00:19]} 19. Ne2 {[%emt 0:00:18]} Rc7 {[%emt 0:03:
14]} 20. g3 {[%emt 0:00:38]} g5 {[%emt 0:01:01]} 21. Ne5 {[%emt 0:01:10]} gxf4
{[%emt 0:00:53]} 22. Nxf4 {[%emt 0:00:19]} Bxe5 {[%emt 0:00:36]} 23. dxe5 {
[%emt 0:00:03]} d4 {[%emt 0:00:17]} 24. Qd1 {[%emt 0:02:58]} Ng5 {[%emt 0:00:
02]} 25. Qg4 {[%emt 0:01:06]} f5 {[%emt 0:00:58]} 26. Qe2 {[%emt 0:01:43]} Nf3+
{[%emt 0:00:27]} 27. Kf1 {[%emt 0:00:02]} Nh2+ {[%emt 0:00:03]} 28. Ke1 {
[%emt 0:00:18]} Nf3+ {[%emt 0:00:01]} 29. Kd1 {[%emt 0:00:04]} Ng5 {[%emt 0:00:
07]} 30. Qd2 {[%emt 0:01:18]} Bf3+ {[%emt 0:00:20]} 31. Be2 {[%emt 0:00:56]}
Rxc1+ {[%emt 0:00:27]} 32. Rxc1 {[%emt 0:00:02]} Qd7 {[%emt 0:00:01]} 33. Bxf3
{[%emt 0:00:55]} Nxf3 {[%emt 0:00:00]} 34. Qb4 {[%emt 0:00:01]} Nxe5 {[%emt 0:
00:01]} 35. Qxb6 {[%emt 0:00:24]} Qxa4+ {[%emt 0:00:10]} 36. b3 {[%emt 0:00:10]
} Qb5 {[%emt 0:00:21]} 37. Qxe6+ {[%emt 0:01:13]} Rf7 {[%emt 0:00:01]} 38. Kc2
{[%emt 0:00:52]} d3+ {[%emt 0:00:17]} 39. Kb2 {[%emt 0:00:01]} d2 {[%emt 0:00:
01]} 40. Rd1 {[%emt 0:00:32]} Nd3+ {[%emt 0:00:02]} 41. Nxd3 {[%emt 0:00:08]}
Qxd3 {[%emt 0:00:00]} 42. Qc8+ {[%emt 0:00:45]} Kh7 {[%emt 0:00:17]} 43. Qc3 {
[%emt 0:00:17]} Rd7 {[%emt 0:00:14]} 44. Qxd3 {[%emt 0:00:14]} Rxd3 {[%emt 0:
00:00]} 45. Kc2 {[%emt 0:00:01]} Rf3 {[%emt 0:00:01]} 46. Rxd2 {[%emt 0:00:01]}
f4 {[%emt 0:00:04]} 47. gxf4 {[%emt 0:00:27]} Rxh3 {[%emt 0:00:02]} 48. Rd7+ {
[%emt 0:00:31]} Kg6 {[%emt 0:00:02]} 49. Rd6+ {[%emt 0:00:01]} Kf5 {[%emt 0:00:
01]} 50. Rxa6 {[%emt 0:00:01]} h5 {[%emt 0:00:12]} 51. b4 {[%emt 0:00:04]} Rf3
{[%emt 0:00:02]} 52. b5 {[%emt 0:00:10]} Rxf2+ {[%emt 0:00:02]} 53. Kc3 {
[%emt 0:00:03]} Rf3+ {[%emt 0:00:01]} 54. Kc4 {[%emt 0:00:02]} Rxf4+ {[%emt 0:
00:06]} 55. Kc5 {[%emt 0:00:01]} Rf1 {[%emt 0:00:06]} 56. Rh6 {[%emt 0:00:06]}
Rc1+ {[%emt 0:00:06]} 57. Kd6 {[%emt 0:00:04]} Kg4 {[%emt 0:00:03]} 58. b6 {
[%emt 0:00:04]} h4 {[%emt 0:00:04]} 59. b7 {[%emt 0:00:04]} Rb1 {[%emt 0:00:01]
} 60. Kc7 {[%emt 0:00:01]} Rxb7+ {[%emt 0:00:10]} 61. Kxb7 {[%emt 0:00:02]} h3
{[%emt 0:00:00]} 62. Kc6 {[%emt 0:00:04]} Kg3 {[%emt 0:00:01]} 63. Kd5 {
[%emt 0:00:01]} h2 {[%emt 0:00:01]} 64. Ke4 {[%emt 0:00:04]} Kg2 {[%emt 0:00:
01]} 65. Rg6+ {[%emt 0:00:05]} Kf2 {[%emt 0:00:02]} 66. Rh6 {[%emt 0:00:01]}
Kg2 {[%emt 0:00:00]} 67. Rxh2+ {[%emt 0:00:03]} Kxh2 {[%emt 0:00:00]} 1/2-1/2

[Event "Skilling Open CCT 2021"]
[Site "Online"]
[Date "2020.11.19"]
[Round "13.5"]
[White "Anton Guijarro, David"]
[Black "Nakamura, Hikaru"]
[Result "0-1"]
[ECO "E46"]
[WhiteElo "2667"]
[BlackElo "2829"]
[Annotator "RC"]
[PlyCount "120"]
[EventDate "2020.11.20"]
[EventType "tourn"]
[EventCountry "NET"]
[Tiebreak "Koya+Number of black wins+Number of wins"]
[SourceTitle "playchess.com"]
[Source "ChessBase"]
[SourceQuality "1"]
[TimeControl "900+10"]

1. d4 {[%emt 0:00:00]} Nf6 {[%emt 0:00:00]} 2. c4 {[%emt 0:00:00]} e6 {[%emt 0:
00:00]} 3. Nc3 {[%emt 0:00:00]} Bb4 {[%emt 0:00:00]} 4. e3 {[%emt 0:00:00]} O-O
{[%emt 0:00:00]} 5. Bd2 {[%emt 0:00:00]} c5 {[%emt 0:00:12]} 6. a3 {[%emt 0:00:
00]} Bxc3 {[%emt 0:00:05]} 7. Bxc3 {[%emt 0:00:01]} Ne4 {[%emt 0:00:04]} 8. Ne2
{[%emt 0:00:24]} b6 {[%emt 0:01:50]} 9. d5 {[%emt 0:00:05]} Bb7 {[%emt 0:00:18]
} 10. f3 {[%emt 0:00:22]} Nxc3 {[%emt 0:00:03]} 11. Nxc3 {[%emt 0:00:01]} exd5
{[%emt 0:00:00]} 12. cxd5 {[%emt 0:00:01]} d6 {[%emt 0:00:14]} 13. e4 {[%emt 0:
00:04]} a6 {[%emt 0:00:41]} 14. Bd3 {[%emt 0:00:10]} b5 {[%emt 0:00:03]} 15.
Qd2 {[%emt 0:00:03]} Nd7 {[%emt 0:00:04]} 16. O-O {[%emt 0:00:04]} Qf6 {
[%emt 0:00:12]} 17. Kh1 {[%emt 0:01:22]} Ne5 {[%emt 0:00:08]} 18. Be2 {[%emt 0:
04:03]} g5 {[%emt 0:00:09]} 19. Nd1 {[%emt 0:00:46]} Ng6 {[%emt 0:00:17]} 20.
Ne3 {[%emt 0:00:26]} Bc8 {[%emt 0:00:02]} 21. g3 {[%emt 0:00:29]} Bh3 {[%emt 0:
00:07]} 22. Rf2 {[%emt 0:00:04]} Rac8 {[%emt 0:01:42]} 23. Bf1 {[%emt 0:00:21]}
Bd7 {[%emt 0:00:02]} 24. Bg2 {[%emt 0:00:21]} c4 {[%emt 0:00:22]} 25. Rc1 {
[%emt 0:02:23]} Ne5 {[%emt 0:00:18]} 26. Qd4 {[%emt 0:00:16]} Qg7 {[%emt 0:02:
24]} 27. Bf1 {[%emt 0:00:42]} f5 {[%emt 0:00:07]} 28. exf5 {[%emt 0:00:23]}
Bxf5 {[%emt 0:00:00]} 29. Nxf5 {[%emt 0:01:25]} Rxf5 {[%emt 0:00:00]} 30. Be2 {
[%emt 0:00:16]} Nd7 {[%emt 0:01:41]} 31. Qd2 {[%emt 0:01:18]} Nf6 {[%emt 0:00:
15]} 32. Qc2 {[%emt 0:00:44]} Rxd5 {[%emt 0:00:04]} 33. f4 {[%emt 0:00:00]} g4
{[%emt 0:00:08]} 34. Bf1 {[%emt 0:00:11]} Qg6 {[%emt 0:00:38]} 35. f5 {[%emt 0:
00:05]} Qg5 {[%emt 0:00:12]} 36. Re1 {[%emt 0:00:23]} Re5 {[%emt 0:00:19]} 37.
Rxe5 {[%emt 0:00:10]} dxe5 {[%emt 0:00:00]} 38. Qd1 {[%emt 0:00:04]} Qe3 {
[%emt 0:02:51]} 39. Qd6 {[%emt 0:00:11]} Rf8 {[%emt 0:00:02]} 40. Re2 {[%emt 0:
01:02]} Qf3+ {[%emt 0:01:46]} 41. Kg1 {[%emt 0:00:02]} Qxf5 {[%emt 0:00:44]}
42. Rxe5 {[%emt 0:00:44]} Qd7 {[%emt 0:00:04]} 43. Rg5+ {[%emt 0:00:25]} Kf7 {
[%emt 0:00:01]} 44. Qxd7+ {[%emt 0:00:04]} Nxd7 {[%emt 0:00:00]} 45. Rxg4 {
[%emt 0:00:00]} Nc5 {[%emt 0:00:15]} 46. Bxc4+ {[%emt 0:01:02]} bxc4 {[%emt 0:
00:02]} 47. Rxc4 {[%emt 0:00:00]} Ne6 {[%emt 0:00:17]} 48. Ra4 {[%emt 0:00:10]}
Rb8 {[%emt 0:00:35]} 49. Rxa6 {[%emt 0:00:52]} Rxb2 {[%emt 0:00:03]} 50. a4 {
[%emt 0:00:01]} Nd4 {[%emt 0:00:21]} 51. h4 {[%emt 0:00:03]} Kg7 {[%emt 0:01:
13]} 52. a5 {[%emt 0:00:06]} Nf5 {[%emt 0:00:08]} 53. Ra8 {[%emt 0:00:21]} Nxg3
{[%emt 0:00:09]} 54. a6 {[%emt 0:00:02]} Ra2 {[%emt 0:00:03]} 55. Ra7+ {
[%emt 0:00:13]} Kh6 {[%emt 0:00:06]} 56. Ra8 {[%emt 0:00:02]} Kh5 {[%emt 0:00:
08]} 57. a7 {[%emt 0:00:31]} Kxh4 {[%emt 0:00:09]} 58. Rb8 {[%emt 0:00:43]}
Rxa7 {[%emt 0:00:00]} 59. Kg2 {[%emt 0:00:02]} Nf5 {[%emt 0:00:06]} 60. Kf3 {
[%emt 0:00:16]} Kg5 {[%emt 0:00:05]} 0-1

[Event "Skilling Open CCT 2021"]
[Site "Online"]
[Date "2020.11.19"]
[Round "13.6"]
[White "Firouzja, Alireza"]
[Black "Karjakin, Sergey"]
[Result "1-0"]
[ECO "D75"]
[WhiteElo "2703"]
[BlackElo "2709"]
[Annotator "RC"]
[PlyCount "109"]
[EventDate "2020.11.20"]
[EventType "tourn"]
[EventCountry "NET"]
[Tiebreak "Koya+Number of black wins+Number of wins"]
[SourceTitle "playchess.com"]
[Source "ChessBase"]
[SourceQuality "1"]
[TimeControl "900+10"]

1. Nf3 {[%emt 0:00:00]} d5 {[%emt 0:00:00]} 2. g3 {[%emt 0:00:00]} g6 {[%emt 0:
00:00]} 3. Bg2 {[%emt 0:00:00]} Bg7 {[%emt 0:00:00]} 4. d4 {[%emt 0:00:00]} Nf6
{[%emt 0:00:00]} 5. O-O {[%emt 0:00:01]} O-O {[%emt 0:00:00]} 6. c4 {[%emt 0:
00:02]} dxc4 {[%emt 0:00:00]} 7. Na3 {[%emt 0:00:04]} c5 {[%emt 0:00:04]} 8.
dxc5 {[%emt 0:00:23]} c3 {[%emt 0:00:01]} 9. Nd4 {[%emt 0:00:16]} Na6 {[%emt 0:
01:36]} 10. c6 {[%emt 0:00:34]} Nd5 {[%emt 0:00:01]} 11. Nab5 {[%emt 0:00:10]}
Nab4 {[%emt 0:00:07]} 12. Nxc3 {[%emt 0:00:09]} Nxc3 {[%emt 0:00:02]} 13. bxc3
{[%emt 0:00:01]} Nxc6 {[%emt 0:00:00]} 14. Be3 {[%emt 0:00:07]} Bd7 {[%emt 0:
02:02]} 15. Rb1 {[%emt 0:03:04]} Na5 {[%emt 0:01:44]} 16. Nb3 {[%emt 0:02:16]}
Nxb3 {[%emt 0:02:06]} 17. Rxb3 {[%emt 0:00:45]} Bc6 {[%emt 0:00:09]} 18. Bxc6 {
[%emt 0:00:50]} bxc6 {[%emt 0:00:00]} 19. Qxd8 {[%emt 0:00:23]} Rfxd8 {[%emt 0:
00:03]} 20. Rfb1 {[%emt 0:00:55]} a5 {[%emt 0:00:55]} 21. Ra3 {[%emt 0:00:53]}
h5 {[%emt 0:01:37]} 22. Kg2 {[%emt 0:00:18]} e6 {[%emt 0:02:39]} 23. Rb6 {
[%emt 0:01:25]} a4 {[%emt 0:00:43]} 24. c4 {[%emt 0:00:17]} c5 {[%emt 0:00:35]}
25. Rd3 {[%emt 0:01:42]} Rdb8 {[%emt 0:01:24]} 26. Rdd6 {[%emt 0:01:26]} Bf8 {
[%emt 0:00:14]} 27. Rxb8 {[%emt 0:00:41]} Rxb8 {[%emt 0:00:00]} 28. Ra6 {
[%emt 0:00:01]} Rb2 {[%emt 0:00:12]} 29. Rxa4 {[%emt 0:00:13]} Rxe2 {[%emt 0:
00:02]} 30. Kf3 {[%emt 0:00:39]} Rb2 {[%emt 0:01:10]} 31. Ra8 {[%emt 0:00:35]}
Kg7 {[%emt 0:00:03]} 32. Ke4 {[%emt 0:00:01]} Be7 {[%emt 0:00:19]} 33. a4 {
[%emt 0:00:28]} g5 {[%emt 0:00:34]} 34. a5 {[%emt 0:00:16]} Ra2 {[%emt 0:00:10]
} 35. a6 {[%emt 0:00:12]} Ra3 {[%emt 0:00:29]} 36. Bc1 {[%emt 0:00:39]} Ra2 {
[%emt 0:00:37]} 37. Kd3 {[%emt 0:00:29]} Bf6 {[%emt 0:00:44]} 38. Be3 {[%emt 0:
00:27]} Ra5 {[%emt 0:00:03]} 39. Kc2 {[%emt 0:00:17]} g4 {[%emt 0:00:05]} 40.
Kb3 {[%emt 0:00:16]} Be5 {[%emt 0:00:31]} 41. a7 {[%emt 0:00:14]} Bf6 {[%emt 0:
00:38]} 42. Bxc5 {[%emt 0:00:11]} Rxc5 {[%emt 0:00:01]} 43. Rb8 {[%emt 0:00:06]
} Ra5 {[%emt 0:00:02]} 44. a8=Q {[%emt 0:00:02]} Rxa8 {[%emt 0:00:01]} 45. Rxa8
{[%emt 0:00:00]} Bd4 {[%emt 0:00:02]} 46. Kb4 {[%emt 0:00:25]} Bxf2 {[%emt 0:
00:03]} 47. c5 {[%emt 0:00:03]} h4 {[%emt 0:00:05]} 48. gxh4 {[%emt 0:00:23]}
Bxh4 {[%emt 0:00:01]} 49. Kb5 {[%emt 0:00:15]} Bf6 {[%emt 0:00:11]} 50. Ra4 {
[%emt 0:00:06]} Be5 {[%emt 0:00:01]} 51. Rxg4+ {[%emt 0:00:01]} Kh6 {[%emt 0:
00:01]} 52. c6 {[%emt 0:00:06]} f5 {[%emt 0:00:02]} 53. Rg8 {[%emt 0:00:06]} f4
{[%emt 0:00:13]} 54. Re8 {[%emt 0:00:09]} Kg5 {[%emt 0:00:10]} 55. Rxe6 {
[%emt 0:00:01]} 1-0

[Event "Skilling Open CCT 2021"]
[Site "Online"]
[Date "2020.11.19"]
[Round "13.8"]
[White "Duda, Jan-Krzysztof"]
[Black "Ding, Liren"]
[Result "1-0"]
[ECO "D46"]
[WhiteElo "2774"]
[BlackElo "2836"]
[Annotator "RC"]
[PlyCount "127"]
[EventDate "2020.11.20"]
[EventType "tourn"]
[EventCountry "NET"]
[Tiebreak "Koya+Number of black wins+Number of wins"]
[SourceTitle "playchess.com"]
[Source "ChessBase"]
[SourceQuality "1"]
[TimeControl "900+10"]

1. d4 {[%emt 0:00:00]} Nf6 {[%emt 0:00:00]} 2. c4 {[%emt 0:00:00]} e6 {[%emt 0:
00:00]} 3. Nf3 {[%emt 0:00:00]} d5 {[%emt 0:00:00]} 4. Nc3 {[%emt 0:00:00]} c6
{[%emt 0:00:21]} 5. e3 {[%emt 0:00:10]} Nbd7 {[%emt 0:00:02]} 6. Qc2 {[%emt 0:
00:01]} Bd6 {[%emt 0:00:02]} 7. Bd3 {[%emt 0:00:02]} O-O {[%emt 0:00:02]} 8.
O-O {[%emt 0:00:00]} e5 {[%emt 0:00:05]} 9. cxd5 {[%emt 0:00:03]} cxd5 {
[%emt 0:00:01]} 10. e4 {[%emt 0:00:02]} exd4 {[%emt 0:00:08]} 11. Nxd5 {
[%emt 0:00:04]} Nxd5 {[%emt 0:00:01]} 12. exd5 {[%emt 0:00:00]} h6 {[%emt 0:00:
00]} 13. Nxd4 {[%emt 0:00:05]} Qh4 {[%emt 0:00:02]} 14. Nf3 {[%emt 0:00:00]}
Qh5 {[%emt 0:00:02]} 15. Bh7+ {[%emt 0:00:03]} Kh8 {[%emt 0:00:02]} 16. Qf5 {
[%emt 0:00:00]} Qxf5 {[%emt 0:00:02]} 17. Bxf5 {[%emt 0:00:00]} Nf6 {[%emt 0:
00:01]} 18. Bxc8 {[%emt 0:00:09]} Rfxc8 {[%emt 0:02:20]} 19. Rd1 {[%emt 0:00:
00]} Rd8 {[%emt 0:00:01]} 20. Be3 {[%emt 0:00:04]} Be7 {[%emt 0:00:03]} 21. d6
{[%emt 0:00:02]} Bxd6 {[%emt 0:00:21]} 22. Kf1 {[%emt 0:00:15]} Kg8 {[%emt 0:
00:06]} 23. Rac1 {[%emt 0:01:51]} a6 {[%emt 0:01:04]} 24. Rc4 {[%emt 0:01:36]}
Rd7 {[%emt 0:00:58]} 25. g3 {[%emt 0:02:03]} Rc7 {[%emt 0:00:34]} 26. Rxc7 {
[%emt 0:00:26]} Bxc7 {[%emt 0:00:00]} 27. Rd3 {[%emt 0:00:07]} Rd8 {[%emt 0:00:
35]} 28. Rb3 {[%emt 0:00:04]} b5 {[%emt 0:00:02]} 29. Ra3 {[%emt 0:00:55]} a5 {
[%emt 0:03:15]} 30. Rc3 {[%emt 0:00:03]} Nd5 {[%emt 0:00:01]} 31. Rc5 {[%emt 0:
00:33]} b4 {[%emt 0:00:01]} 32. Ke2 {[%emt 0:00:38]} a4 {[%emt 0:04:56]} 33.
Bd4 {[%emt 0:01:07]} a3 {[%emt 0:00:11]} 34. bxa3 {[%emt 0:03:58]} bxa3 {
[%emt 0:00:18]} 35. Rb5 {[%emt 0:00:02]} Ne7 {[%emt 0:01:28]} 36. Bc5 {[%emt 0:
02:09]} Rd5 {[%emt 0:00:11]} 37. Nd4 {[%emt 0:00:01]} Nf5 {[%emt 0:01:22]} 38.
Nb3 {[%emt 0:00:05]} g5 {[%emt 0:02:23]} 39. Rb4 {[%emt 0:00:59]} Bd6 {[%emt 0:
00:05]} 40. Bxd6 {[%emt 0:00:35]} Nxd6 {[%emt 0:00:11]} 41. Rd4 {[%emt 0:00:00]
} Re5+ {[%emt 0:00:01]} 42. Kd3 {[%emt 0:00:02]} Nf5 {[%emt 0:00:03]} 43. Ra4 {
[%emt 0:01:00]} Re1 {[%emt 0:00:01]} 44. Rxa3 {[%emt 0:00:00]} Rh1 {[%emt 0:00:
01]} 45. Ra5 {[%emt 0:00:20]} Ng7 {[%emt 0:00:01]} 46. a4 {[%emt 0:00:03]} Rxh2
{[%emt 0:00:01]} 47. Ke3 {[%emt 0:00:03]} Ne6 {[%emt 0:00:15]} 48. Rb5 {
[%emt 0:00:29]} Rh1 {[%emt 0:00:36]} 49. a5 {[%emt 0:00:05]} Re1+ {[%emt 0:00:
11]} 50. Kd2 {[%emt 0:00:49]} Re4 {[%emt 0:00:13]} 51. a6 {[%emt 0:00:02]} Ra4
{[%emt 0:00:11]} 52. Ra5 {[%emt 0:00:17]} Rxa5 {[%emt 0:00:15]} 53. Nxa5 {
[%emt 0:00:00]} Nc7 {[%emt 0:00:00]} 54. a7 {[%emt 0:00:01]} h5 {[%emt 0:00:01]
} 55. Ke3 {[%emt 0:00:17]} Kg7 {[%emt 0:00:03]} 56. Nc4 {[%emt 0:00:06]} Kg6 {
[%emt 0:00:15]} 57. Nb6 {[%emt 0:01:38]} Kf5 {[%emt 0:00:01]} 58. Kf3 {[%emt 0:
00:01]} g4+ {[%emt 0:00:18]} 59. Kg2 {[%emt 0:00:53]} Kg5 {[%emt 0:00:01]} 60.
a8=Q {[%emt 0:00:03]} Nxa8 {[%emt 0:00:01]} 61. Nxa8 {[%emt 0:00:00]} f5 {
[%emt 0:00:02]} 62. Nc7 {[%emt 0:00:02]} h4 {[%emt 0:00:03]} 63. gxh4+ {
[%emt 0:00:04]} Kxh4 {[%emt 0:00:13]} 64. Ne6 {[%emt 0:00:00]} 1-0